bitfinex/quotes_SOLUSD_20240813
["timestamp","ask_amount","ask_price","bid_price","bid_amount"]
[1723507975028,45.0,146.54,146.51,5.4603]
[1723507975256,1.70634435,146.53,146.49,13.6524]
[1723507975433,1.70634435,146.53,146.49,19.1134]
[1723507975755,20.0,146.51,146.42,0.8276605]
[1723507975968,0.12549,146.48,146.44,5.4626]
[1723507976122,50.58629,146.5,146.44,13.6567]
[1723507976327,45.12549,146.49,146.42,0.8276605]
[1723507976547,0.12549,146.48,146.46,19.1169]
[1723507976865,0.25098,146.48,146.46,19.1169]
[1723507977451,0.25098,146.48,146.46,13.6548]
[1723507977849,0.25098,146.48,146.43,5.463]
[1723507978157,0.12549,146.46,146.43,5.4633]
[1723507978328,45.37647,146.46,146.43,5.4633]
[1723507978743,45.0,146.45,146.43,5.4633]
[1723507978947,0.37647,146.46,146.43,5.4633]
[1723507979336,5.83877,146.46,146.42,14.4863605]
[1723507979540,0.12549,146.44,146.42,0.8276605]
[1723507979733,46.95857887,146.44,146.42,0.8276605]
[1723507979928,45.25098,146.44,146.42,0.8276605]
[1723507980130,1.83310986,146.43,146.42,0.8276605]
[1723507980440,20.12549,146.47,146.44,5.4629]
[1723507980441,0.12549,146.47,146.44,5.4629]
[1723507980756,0.12549,146.46,146.42,14.4867605]
[1723507981330,21.488,146.5,146.44,13.6567]
[1723507981533,20.0,146.53,146.46,13.6547]
[1723507981730,20.0,146.53,146.42,0.8276605]
[1723507981960,5.4607,146.51,146.45,5.4625]
[1723507982140,7.16784678,146.5,146.44,19.1195]
[1723507982360,5.4611,146.49,146.44,13.6566]
[1723507982559,1.7071873,146.48,146.44,13.6566]
[1723507982750,5.4604,146.51,146.44,13.6566]
[1723507983076,20.0,146.53,146.44,13.6566]
[1723507983284,22.4603,146.54,146.5,5.4607]
[1723507983578,22.4603,146.54,146.48,19.1142]
[1723507983787,24.16697875,146.54,146.48,13.6528]
[1723507983964,5.4596,146.53,146.48,13.6528]
[1723507984350,24.16698248,146.54,146.49,5.4611]
[1723507984587,22.6633,146.58,146.51,13.6504]
[1723507984760,5.46,146.52,146.47,5.4618]
[1723507984952,20.0,146.51,146.42,0.8276605]
[1723507985150,20.0,146.51,146.45,5.4624]
[1723507985354,25.4604,146.51,146.46,5.4621]
[1723507985557,5.4617,146.48,146.43,13.6575]
[1723507985759,1.70704209,146.5,146.43,13.6575]
[1723507985760,7.1690078,146.47,146.43,13.6575]
[1723507985950,45.0,146.46,146.43,19.1207]
[1723507986475,45.0,146.46,146.44,5.4628]
[1723507987478,45.0,146.46,146.43,19.1207]
[1723507987658,0.12549,146.43,146.42,0.8276605]
[1723507987846,46.95860527,146.43,146.42,0.8276605]
[1723507988054,45.25098,146.43,146.42,0.8276605]
[1723507988277,50.96526,146.43,146.42,0.8276605]
[1723507989075,45.25098,146.43,146.42,6.2913605]
[1723507989281,0.12549,146.48,146.42,0.8276605]
[1723507989578,0.12549,146.46,146.42,19.9498605]
[1723507989776,0.12549,146.46,146.44,5.4629]
[1723507989988,36.2031,146.49,146.44,5.4629]
[1723507990289,13.6549,146.47,146.42,0.8276605]
[1723507990490,55.2731,146.49,146.43,5.4633]
[1723507990701,16.2031,146.49,146.42,14.4863605]
[1723507991002,7.1673882,146.52,146.42,0.8276605]
[1723507991287,15.9566,146.53,146.46,13.6549]
[1723507991594,20.0,146.49,146.42,0.8276605]
[1723507991765,5.4625,146.46,146.42,0.8276605]
[1723507991968,20.0,146.49,146.42,0.8276605]
[1723507992587,20.0,146.51,146.43,5.4633]
[1723507992786,20.0,146.46,146.42,0.8276605]
[1723507992998,5.463,146.44,146.42,0.8276605]
[1723507993162,5.58879,146.43,146.42,0.8276605]
[1723507993359,50.71428,146.43,146.42,0.8276605]
[1723507993890,50.96526,146.43,146.42,0.8276605]
[1723507994405,52.67322122,146.43,146.42,0.8276605]
[1723507994764,50.96526,146.43,146.42,0.8276605]
[1723507994985,52.67347519,146.43,146.42,0.8276605]
[1723507995293,50.96526,146.43,146.42,0.8276605]
[1723507995477,5.4653,146.38,146.33,19.1344]
[1723507995679,46.83386896,146.37,146.33,19.1344]
[1723507996259,0.12549,146.34,146.3,19.1384]
[1723507996492,0.25098,146.34,146.3,19.1384]
[1723507996792,0.25098,146.34,146.27,14.5007605]
[1723507996793,0.12549,146.33,146.27,14.5007605]
[1723507996996,45.0,146.34,146.27,0.8276605]
[1723507997202,45.0,146.34,146.32,5.4674]
[1723507997410,45.25098,146.35,146.31,5.4678]
[1723507997577,50.71728,146.35,146.3,5.4681]
[1723507997780,0.12549,146.33,146.29,13.6708]
[1723507997993,0.12549,146.34,146.29,13.6708]
[1723507998504,45.12549,146.35,146.33,5.4667]
[1723507998695,5.4653,146.38,146.33,5.467]
[1723507999087,20.2938,146.41,146.29,39.07]
[1723507999088,6.6333,146.41,146.3,27.3405]
[1723507999292,12.0974,146.41,146.36,5.4656]
[1723507999608,5.4637,146.42,146.37,5.4655]
[1723507999801,20.0,146.42,146.36,5.4658]
[1723508000103,5.4666,146.35,146.3,5.4679]
[1723508000286,20.0,146.39,146.32,5.4673]
[1723508000494,5.4656,146.37,146.26,72.4975]
[1723508000686,5.4656,146.37,146.27,20.8276605]
[1723508000883,45.37647,146.36,146.27,20.8276605]
[1723508001492,45.37647,146.36,146.33,5.4668]
[1723508001673,0.37647,146.36,146.33,5.4668]
[1723508002074,0.37647,146.36,146.32,5.4674]
[1723508002509,0.37647,146.36,146.33,5.4668]
[1723508002883,45.0,146.37,146.34,5.4666]
[1723508003109,0.12549,146.38,146.3,27.3396]
[1723508003417,20.0,146.43,146.38,5.4651]
[1723508003710,5.4635,146.43,146.38,5.4651]
[1723508004380,16.665,146.44,146.37,13.6633]
[1723508004580,20.0,146.46,146.39,13.6614]
[1723508004581,5.4623,146.46,146.39,13.6614]
[1723508004781,20.0,146.44,146.35,6.3985]
[1723508005077,5.4638,146.42,146.37,5.4653]
[1723508005280,5.4635,146.43,146.36,13.6647]
[1723508005476,20.0,146.44,146.36,13.6647]
[1723508005793,5.4647,146.4,146.36,13.6647]
[1723508005982,0.12549,146.37,146.34,5.4664]
[1723508006191,0.12549,146.37,146.35,5.4663]
[1723508006700,45.25098,146.39,146.36,5.4658]
[1723508007001,1.83366506,146.38,146.36,5.4658]
[1723508007214,0.12549,146.38,146.36,5.4658]
[1723508007600,0.12549,146.38,146.35,5.4662]
[1723508007803,0.12549,146.38,146.33,13.6672]
[1723508007804,5.84197,146.38,146.33,19.1342]
[1723508008010,5.84197,146.38,146.3,27.3396]
[1723508008011,0.12549,146.36,146.3,27.3396]
[1723508008185,0.12549,146.36,146.33,5.4667]
[1723508008388,0.12549,146.36,146.34,5.4666]
[1723508009010,0.12549,146.36,146.33,5.4669]
[1723508009311,0.12549,146.36,146.32,13.668]
[1723508009490,5.59169,146.36,146.32,13.668]
[1723508009696,0.12549,146.34,146.29,13.6713]
[1723508009908,45.25098,146.35,146.29,13.6713]
[1723508009909,0.12549,146.32,146.29,19.1397]
[1723508010091,45.37647,146.32,146.29,19.1397]
[1723508010501,0.25098,146.32,146.3,5.4679]
[1723508010905,0.12549,146.3,146.27,0.8276605]
[1723508011130,0.12549,146.3,146.16,16.1261]
[1723508011131,5.59439,146.28,146.23,5.4707]
[1723508011326,0.12549,146.27,146.22,13.6774]
[1723508011509,45.12549,146.27,146.22,13.6774]
[1723508011694,1.83494501,146.3,146.26,5.4697]
[1723508011892,0.12549,146.28,146.24,13.6752]
[1723508012119,5.59469,146.28,146.24,13.6752]
[1723508012297,0.12549,146.26,146.22,5.4711]
[1723508012500,0.12549,146.26,146.23,5.4706]
[1723508012899,0.12549,146.26,146.22,5.4711]
[1723508013101,45.25098,146.27,146.23,13.6766]
[1723508013297,45.12549,146.27,146.23,13.6766]
[1723508013619,0.12549,146.28,146.25,5.47]
[1723508013791,45.50196,146.29,146.23,13.6766]
[1723508014334,0.12549,146.27,146.23,19.1471]
[1723508014500,45.25098,146.27,146.23,19.1471]
[1723508014691,45.25098,146.27,146.18,27.3632]
[1723508014897,45.25098,146.27,146.22,13.6774]
[1723508015093,45.25098,146.27,146.24,5.4703]
[1723508015307,45.0,146.26,146.25,5.47]
[1723508015510,0.12549,146.27,146.18,13.6816]
[1723508015714,0.12549,146.24,146.18,13.6816]
[1723508015920,0.12549,146.26,146.15,6.3808]
[1723508015921,0.12549,146.25,146.21,5.4712]
[1723508016109,0.12549,146.24,146.22,5.471]
[1723508016292,0.25098,146.24,146.22,5.471]
[1723508016487,0.12549,146.24,146.2,13.6791]
[1723508016699,1.83547623,146.24,146.2,19.1509]
[1723508017020,0.12549,146.27,146.2,13.6791]
[1723508017225,0.12549,146.25,146.2,13.6791]
[1723508017514,45.25098,146.25,146.2,13.6791]
[1723508017724,0.12549,146.25,146.22,5.4711]
[1723508017890,45.0,146.24,146.22,5.4711]
[1723508018098,20.0,146.29,146.23,13.6768]
[1723508018308,22.247,146.31,146.18,27.3621]
[1723508018509,42.247,146.31,146.2,39.07]
[1723508018711,20.0,146.29,146.18,27.3621]
[1723508018916,20.0,146.29,146.19,20.0]
[1723508019103,20.0,146.27,146.17,39.07]
[1723508019310,1.70986417,146.26,146.2,5.4718]
[1723508019820,0.50196,146.25,146.2,5.4718]
[1723508020018,0.50196,146.25,146.21,5.4714]
[1723508020216,20.0,146.29,146.18,27.363]
[1723508020517,5.4685,146.3,146.18,27.363]
[1723508020694,0.12549,146.29,146.24,13.6755]
[1723508020900,5.4686,146.29,146.24,13.6755]
[1723508021304,5.4686,146.29,146.24,19.1458]
[1723508021507,5.4686,146.29,146.25,5.47]
[1723508021703,5.4686,146.29,146.24,19.1458]
[1723508021911,20.0,146.3,146.25,5.47]
[1723508021912,5.4682,146.3,146.25,5.47]
[1723508022300,0.12549,146.28,146.25,5.47]
[1723508022490,45.12549,146.29,146.26,5.4697]
[1723508022690,20.12549,146.29,146.21,13.6785]
[1723508022900,5.4698,146.26,146.21,13.1885]
[1723508023194,5.59489,146.27,146.22,5.4711]
[1723508023413,0.12549,146.29,146.23,13.6764]
[1723508023641,5.59399,146.29,146.24,5.4703]
[1723508023800,45.12549,146.28,146.24,5.4703]
[1723508024001,45.0,146.28,146.23,13.6764]
[1723508024308,5.4698,146.26,146.2,13.6796]
[1723508024487,0.25098,146.27,146.2,13.6796]
[1723508024488,5.72038,146.27,146.22,5.4711]
[1723508024688,0.25098,146.27,146.23,5.4708]
[1723508024888,0.25098,146.27,146.24,5.4703]
[1723508025189,0.25098,146.27,146.23,19.1475]
[1723508025388,0.25098,146.27,146.24,5.4703]
[1723508025825,45.0,146.28,146.25,13.6745]
[1723508026116,45.0,146.28,146.23,5.4705]
[1723508026325,45.0,146.28,146.24,5.4703]
[1723508026492,45.0,146.28,146.25,5.4699]
[1723508026694,5.4685,146.3,146.25,5.4699]
[1723508026889,43.95624034,146.31,146.24,13.6758]
[1723508027533,27.7149,146.31,146.26,5.4696]
[1723508027913,20.0,146.28,146.16,7.06313235]
[1723508028226,11.9686,146.22,146.09,7.81822844]
[1723508028532,6.4974,146.22,146.1,7.06654414]
[1723508028916,5.59589,146.25,146.2,5.4719]
[1723508029112,50.4705,146.24,146.19,5.4722]
[1723508029314,50.59599,146.24,146.18,13.6814]
[1723508029528,50.59599,146.24,146.18,19.1538]
[1723508029928,5.59649,146.23,146.18,19.1538]
[1723508030305,5.59649,146.23,146.19,5.4722]
[1723508030505,5.59649,146.23,146.18,19.154]
[1723508030928,0.12549,146.23,146.19,5.4722]
[1723508031226,5.59629,146.23,146.18,19.154]
[1723508031435,50.59599,146.24,146.19,5.4721]
[1723508031736,61.66040617,146.39,146.19,5.4721]
[1723508031737,15.3501,146.29,146.19,39.07]
[1723508031939,15.3501,146.29,146.18,33.7147]
[1723508031940,55.0446,146.34,146.2,65.50196]
[1723508032103,21.3775,146.34,146.23,39.07]
[1723508032306,5.4675,146.32,146.27,13.6725]
[1723508032526,21.3775,146.34,146.27,13.6725]
[1723508032840,5.4658,146.37,146.29,39.07]
[1723508033347,5.4658,146.37,146.31,19.1365]
[1723508034012,5.4658,146.37,146.28,13.6722]
[1723508034013,0.12549,146.36,146.28,13.6722]
[1723508034213,5.59229,146.34,146.28,13.6722]
[1723508034425,45.0,146.33,146.3,5.468]
[1723508034810,45.12549,146.34,146.3,5.468]
[1723508035026,46.83424756,146.34,146.25,13.6752]
[1723508035226,5.468,146.31,146.26,5.4693]
[1723508035651,1.70898817,146.3,146.25,13.6752]
[1723508035878,7.17787389,146.29,146.25,13.6752]
[1723508036150,1.70927389,146.29,146.25,19.1452]
[1723508036320,0.12549,146.31,146.25,13.6752]
[1723508036321,5.59359,146.31,146.25,13.6752]
[1723508036515,45.0,146.3,146.25,13.6752]
[1723508036725,1.83458591,146.29,146.25,13.6752]
[1723508036918,1.96007591,146.29,146.21,13.6784]
[1723508037218,0.12549,146.27,146.2,13.6793]
[1723508037432,1.83505618,146.27,146.2,13.6793]
[1723508037639,1.83505618,146.27,146.17,39.07]
[1723508037640,0.12549,146.27,146.24,5.4701]
[1723508037827,0.25098,146.27,146.24,5.4701]
[1723508038143,0.25098,146.27,146.22,13.6774]
[1723508038445,0.25098,146.27,146.16,45.4216]
[1723508038615,0.25098,146.27,146.24,5.4703]
[1723508038818,50.469,146.28,146.24,5.4703]
[1723508039018,0.12549,146.27,146.23,5.4707]
[1723508039324,5.72048,146.27,146.22,5.4711]
[1723508039637,45.0,146.26,146.22,5.4711]
[1723508039841,50.4697,146.26,146.22,5.4711]
[1723508040016,50.4697,146.26,146.21,19.1497]
[1723508040218,0.25098,146.27,146.21,13.6782]
[1723508040427,0.25098,146.28,146.24,5.4703]
[1723508040642,50.71998,146.28,146.24,5.4703]
[1723508041013,50.71998,146.28,146.21,13.6782]
[1723508041014,21.3775,146.29,146.23,13.6765]
[1723508041324,13.6671,146.34,146.29,5.4684]
[1723508041325,27.8615,146.34,146.29,5.4684]
[1723508041654,5.4672,146.33,146.28,5.4688]
[1723508041822,5.4674,146.32,146.27,19.142]
[1723508042446,27.8618,146.34,146.29,5.4685]
[1723508042657,22.3948,146.34,146.3,5.4681]
[1723508043251,5.4672,146.33,146.29,13.6709]
[1723508043433,5.4675,146.32,146.28,5.4689]
[1723508043634,5.4675,146.32,146.27,5.4692]
[1723508043936,1.70902755,146.31,146.27,5.4692]
[1723508044133,5.4671,146.33,146.28,5.4689]
[1723508044329,5.4679,146.31,146.27,5.4692]
[1723508044551,7.17752756,146.3,146.26,13.6738]
[1723508045051,0.25098,146.31,146.23,13.6769]
[1723508045052,0.25098,146.29,146.23,13.6769]
[1723508045367,0.12549,146.28,146.25,5.47]
[1723508045533,0.12549,146.29,146.23,13.6769]
[1723508045733,0.25098,146.3,146.23,13.6769]
[1723508045934,0.25098,146.29,146.26,5.4696]
[1723508046195,0.25098,146.29,146.25,5.47]
[1723508046458,0.25098,146.29,146.26,5.4696]
[1723508046849,5.4675,146.32,146.27,5.4692]
[1723508047172,22.3948,146.34,146.27,13.6728]
[1723508047336,45.0,146.33,146.29,5.4682]
[1723508047633,22.3948,146.34,146.3,5.468]
[1723508047831,22.3948,146.34,146.29,13.671]
[1723508048233,22.3948,146.34,146.31,5.4677]
[1723508048428,15.9557,146.34,146.29,13.671]
[1723508048635,5.4672,146.33,146.29,13.671]
[1723508049545,5.4672,146.33,146.29,19.1395]
[1723508049745,21.4225,146.34,146.29,19.1395]
[1723508049949,15.9557,146.34,146.29,13.671]
[1723508050561,15.9557,146.34,146.31,5.4677]
[1723508050954,21.4227,146.34,146.29,13.671]
[1723508051353,15.9557,146.34,146.3,5.4681]
[1723508051562,15.9557,146.34,146.31,5.4677]
[1723508051965,15.9557,146.34,146.3,5.4681]
[1723508052174,21.4225,146.34,146.3,5.4681]
[1723508052367,15.9557,146.34,146.3,5.4681]
[1723508052742,15.9557,146.34,146.31,5.4677]
[1723508052941,6.199,146.37,146.31,13.6691]
[1723508053151,6.199,146.37,146.34,5.4666]
[1723508053345,13.6607,146.41,146.29,27.341]
[1723508053346,5.4645,146.4,146.35,5.4662]
[1723508053565,5.4649,146.39,146.35,5.4662]
[1723508054550,11.7774,146.41,146.36,5.4658]
[1723508054749,6.313,146.41,146.35,13.6654]
[1723508054966,5.4645,146.4,146.35,13.6654]
[1723508055177,6.313,146.41,146.35,19.1316]
[1723508055178,5.4649,146.39,146.35,19.1316]
[1723508055776,6.313,146.41,146.36,5.4659]
[1723508055985,6.313,146.41,146.35,13.6654]
[1723508055986,5.4647,146.4,146.35,19.1316]
[1723508056371,5.4649,146.39,146.35,13.6654]
[1723508056668,6.313,146.41,146.35,15.03177573]
[1723508056881,26.16887069,146.45,146.37,13.6635]
[1723508057049,20.0,146.42,146.33,5.467]
[1723508057254,5.4657,146.37,146.32,5.4674]
[1723508057469,5.4657,146.37,146.29,27.341]
[1723508057470,5.466,146.36,146.31,19.137]
[1723508057670,5.466,146.36,146.32,5.4674]
[1723508057860,5.4656,146.37,146.32,5.4674]
[1723508058488,0.25098,146.38,146.31,13.6692]
[1723508058691,50.466,146.36,146.32,5.4674]
[1723508058864,5.466,146.36,146.32,5.4674]
[1723508059261,21.95588,146.37,146.33,5.467]
[1723508059565,27.42158,146.37,146.32,5.4673]
[1723508059790,50.466,146.36,146.31,19.1369]
[1723508059960,5.4665,146.35,146.31,13.6692]
[1723508060166,45.0,146.34,146.31,13.6692]
[1723508060599,45.0,146.34,146.31,19.1369]
[1723508060899,50.4667,146.34,146.31,13.6692]
[1723508061091,45.0,146.34,146.31,13.6692]
[1723508061606,0.12549,146.33,146.27,5.4692]
[1723508061892,0.12549,146.33,146.25,13.6748]
[1723508061893,5.4682,146.3,146.25,13.6748]
[1723508062108,5.4686,146.29,146.25,13.6748]
[1723508062259,0.12549,146.31,146.25,13.6748]
[1723508062465,0.12549,146.3,146.27,5.4693]
[1723508062993,45.0,146.31,146.27,5.4693]
[1723508063596,45.0,146.31,146.28,5.4687]
[1723508063772,45.25098,146.32,146.28,5.4687]
[1723508063971,45.0,146.32,146.29,5.4685]
[1723508064168,5.4671,146.33,146.29,5.4685]
[1723508064565,0.25098,146.34,146.3,5.4681]
[1723508064767,45.25098,146.34,146.3,5.4681]
[1723508064979,50.71768,146.34,146.3,5.4681]
[1723508065688,50.71768,146.34,146.29,19.1395]
[1723508065891,21.7049,146.37,146.32,5.4672]
[1723508066103,5.4662,146.36,146.31,19.1367]
[1723508066284,21.7049,146.37,146.31,19.1367]
[1723508066893,5.466,146.36,146.31,19.1367]
[1723508067401,45.0,146.35,146.31,19.1367]
[1723508067600,50.4663,146.35,146.31,19.1367]
[1723508067804,50.4663,146.35,146.31,13.669]
[1723508068385,45.0,146.35,146.31,19.1367]
[1723508069206,5.466,146.36,146.31,19.1367]
[1723508069207,5.466,146.36,146.32,5.4673]
[1723508069895,27.1705,146.37,146.32,5.4673]
[1723508071615,5.4647,146.4,146.35,5.4661]
[1723508071915,28.3054,146.41,146.36,5.4657]
[1723508072205,22.8413,146.41,146.33,5.467]
[1723508072413,5.4654,146.38,146.33,5.467]
[1723508072921,5.4648,146.39,146.34,5.4666]
[1723508073910,5.4658,146.37,146.32,19.1358]
[1723508074207,0.12549,146.37,146.3,5.4681]
[1723508074515,45.12549,146.36,146.3,5.4681]
[1723508074809,20.12549,146.4,146.31,13.6689]
[1723508075025,5.4656,146.37,146.33,5.4669]
[1723508075314,5.59079,146.38,146.33,5.4669]
[1723508075504,0.25098,146.39,146.34,5.4666]
[1723508075505,5.59029,146.39,146.34,5.4666]
[1723508076089,5.59029,146.39,146.33,13.6672]
[1723508076090,5.59029,146.39,146.35,5.4662]
[1723508076291,22.8413,146.41,146.3,27.3408]
[1723508076292,16.3534,146.41,146.36,1.36644566]
[1723508076501,5.4633,146.43,146.38,5.4649]
[1723508076715,21.5473,146.45,146.41,5.464]
[1723508076918,21.5473,146.45,146.39,13.6616]
[1723508077099,5.4636,146.43,146.39,13.6616]
[1723508077512,33.86495724,146.45,146.35,13.665]
[1723508077513,21.5473,146.45,146.35,13.665]
[1723508077712,33.86492237,146.45,146.35,13.665]
[1723508078518,0.12549,146.44,146.35,13.665]
[1723508078714,45.25098,146.44,146.35,13.665]
[1723508078913,5.4637,146.42,146.38,5.4652]
[1723508079112,5.71398,146.44,146.4,5.4644]
[1723508079311,50.4634,146.43,146.38,5.4649]
[1723508079524,45.0,146.43,146.37,19.1291]
[1723508079694,5.4643,146.41,146.37,13.6636]
[1723508079899,5.4638,146.42,146.37,19.1291]
[1723508080296,5.4645,146.4,146.36,5.4658]
[1723508080603,45.0,146.41,146.36,13.6643]
[1723508080791,5.4633,146.43,146.38,5.4649]
[1723508080989,5.4633,146.43,146.39,5.4647]
[1723508081193,5.71408,146.44,146.39,5.4647]
[1723508081417,45.0,146.43,146.39,5.4647]
[1723508081905,50.4634,146.43,146.39,5.4647]
[1723508082111,45.0,146.43,146.39,5.4647]
[1723508083019,20.9123,146.45,146.38,13.6625]
[1723508083320,15.4497,146.45,146.41,5.4638]
[1723508083530,15.38217616,146.48,146.42,5.4637]
[1723508083828,15.38217616,146.48,146.43,5.4633]
[1723508083829,20.84387616,146.48,146.43,5.4633]
[1723508083996,12.0164,146.48,146.43,5.4633]
[1723508084199,13.6514,146.51,146.46,5.4622]
[1723508084200,8.82727616,146.51,146.46,5.4622]
[1723508084402,6.558,146.52,146.46,5.4622]
[1723508084602,6.558,146.52,146.47,1.36531641]
[1723508084805,21.5243,146.53,146.48,5.4612]
[1723508085434,5.4598,146.53,146.48,5.4612]
[1723508085797,5.46,146.52,146.48,5.4612]
[1723508086116,1.70641579,146.51,146.43,13.6579]
[1723508086306,5.4614,146.49,146.44,5.4629]
[1723508086505,5.4596,146.53,146.48,5.4612]
[1723508086705,5.4596,146.53,146.48,5.4614]
[1723508086909,0.12549,146.55,146.48,5.4614]
[1723508087101,0.25098,146.55,146.48,5.4614]
[1723508087298,0.25098,146.55,146.47,13.654]
[1723508087613,5.4605,146.51,146.47,19.1158]
[1723508087790,5.46,146.52,146.47,19.1158]
[1723508088525,0.25098,146.55,146.48,5.4611]
[1723508088526,5.4596,146.53,146.48,5.4611]
[1723508088821,17.86706456,146.56,146.5,5.4606]
[1723508089024,15.22638728,146.56,146.5,5.4606]
[1723508089209,15.22638728,146.56,146.49,13.6522]
[1723508089725,5.4599,146.53,146.49,13.6522]
[1723508090114,5.4599,146.53,146.49,19.1132]
[1723508090621,5.4582,146.57,146.52,13.6498]
[1723508090837,5.4582,146.57,146.53,5.4595]
[1723508090995,5.4587,146.56,146.52,13.6498]
[1723508091199,5.4587,146.56,146.52,19.1096]
[1723508091599,5.4582,146.57,146.52,19.1096]
[1723508092012,5.4589,146.55,146.5,12.0951]
[1723508092301,5.4589,146.55,146.51,5.4603]
[1723508092923,26.66602259,146.61,146.5,6.6347]
[1723508093098,5.4574,146.59,146.5,6.6347]
[1723508093425,5.4574,146.59,146.55,5.4588]
[1723508093603,5.4574,146.59,146.54,5.4592]
[1723508093802,5.4581,146.57,146.53,13.6485]
[1723508093996,5.4578,146.58,146.53,19.1079]
[1723508094224,5.4582,146.57,146.53,13.6485]
[1723508094396,5.4577,146.58,146.53,19.1081]
[1723508094720,45.0,146.57,146.53,19.1081]
[1723508095036,45.0,146.57,146.5,20.2861]
[1723508095321,5.4589,146.55,146.5,19.112]
[1723508095632,5.70948,146.56,146.51,5.4602]
[1723508095804,5.4585,146.56,146.52,5.4598]
[1723508096005,7.1644725,146.56,146.51,5.4603]
[1723508096213,5.4585,146.56,146.51,5.4603]
[1723508096525,5.4585,146.56,146.52,5.4599]
[1723508096741,5.4585,146.56,146.51,5.4603]
[1723508097205,5.4585,146.56,146.5,13.6514]
[1723508097403,5.4589,146.55,146.5,13.6514]
[1723508097794,5.4596,146.53,146.49,5.461]
[1723508097997,5.4598,146.53,146.48,5.4614]
[1723508098307,0.12549,146.55,146.48,5.4614]
[1723508098500,5.4596,146.53,146.48,5.4614]
[1723508099117,5.4591,146.55,146.5,5.4606]
[1723508099414,5.4585,146.56,146.49,13.6522]
[1723508099718,5.4588,146.56,146.51,5.46]
[1723508100106,5.4578,146.58,146.53,5.4595]
[1723508100310,24.03188728,146.61,146.49,27.3047]
[1723508100501,5.4575,146.59,146.54,5.4591]
[1723508100698,24.03188728,146.61,146.53,19.1081]
[1723508100699,5.4578,146.58,146.53,19.1081]
[1723508100916,1.70576693,146.6,146.5,0.12549]
[1723508101119,10.37415421,146.6,146.49,13.6519]
[1723508101318,10.37415421,146.6,146.51,13.6504]
[1723508101319,8.66838728,146.6,146.51,13.6504]
[1723508101628,8.66838728,146.6,146.5,13.6517]
[1723508101800,5.4592,146.54,146.5,13.6517]
[1723508101999,20.0,146.57,146.47,13.6544]
[1723508102208,21.537,146.54,146.46,5.4622]
[1723508102414,21.537,146.54,146.44,13.657]
[1723508102415,0.25098,146.53,146.44,19.1196]
[1723508102719,5.4589,146.55,146.43,1.36526718]
[1723508102929,41.8263,146.6,146.51,19.1111]
[1723508102930,5.4585,146.56,146.51,19.1111]
[1723508103223,5.4592,146.54,146.51,13.6508]
[1723508103429,5.4592,146.54,146.49,5.4608]
[1723508103601,20.0,146.55,146.42,6.0633]
[1723508103802,0.12549,146.53,146.45,13.6562]
[1723508104002,51.33400321,146.6,146.5,5.4607]
[1723508104003,20.0,146.59,146.5,5.4607]
[1723508104231,44.97680321,146.6,146.48,13.6537]
[1723508104232,0.12549,146.55,146.48,13.6537]
[1723508104525,5.4593,146.54,146.49,5.461]
[1723508105211,5.58439,146.55,146.5,5.4606]
[1723508105522,0.12549,146.53,146.48,13.6537]
[1723508105731,5.46,146.52,146.48,13.6537]
[1723508106438,5.4614,146.49,146.44,5.4629]
[1723508106745,0.25098,146.51,146.42,19.1224]
[1723508106746,0.12549,146.48,146.42,19.1224]